Cogmind - Beta 14 @@@ ROGUE MODE // 2024.08.07 @ 16:57:28 Player: Ronin_tempest Result: Destroyed by D-53 Grenadier with Mini Grenade Launcher Performance ------------- Evolutions (0) 0 Regions Visited (3) 600 Robots Destroyed (37) 185 Value Destroyed (880) 880 Prototype IDs (3) 60 Alien Tech Used (0) 0 Bonus (0) 0 TOTAL SCORE: 1725 Bonus ------- None Cogmind --------- Core Integrity 0/250 Matter 300/300 Energy 250/250 System Corruption 0% Temperature Cool (0) Movement Treading (160) Location -9/Recycling Parts ------- > --- POWER (1) -------- Ion Engine > --- PROPULSION (2) --- Light Treads Light Treads > --- UTILITY (2) ------ Large Storage Unit > --- WEAPON (2) ------- Subdweller Laser Assault Rifle > --- INVENTORY (15) --- Aluminum Leg Wheel Subdweller Optics Signal Interpreter Scrap Shield Assault Rifle Assault Rifle Mini Grenade Launcher Mini Grenade Launcher Mining Laser Scrap Shield Fragment (35) Peak State ------------ > --- POWER ------------ Ion Engine > --- PROPULSION ------- Aluminum Leg Aluminum Leg > --- UTILITY ---------- Small Storage Unit Improved Terrain Scanner > --- WEAPON ----------- EM Pulse Gun Small Laser > --- INVENTORY -------- Light Ion Engine Light Treads Light Treads Wheel Compact Wheel EM Pulse Gun [Rating: 9] Favorites ----------- Power Ion Engine Engine Ion Engine Propulsion Light Treads Treads Light Treads Leg Aluminum Leg Utility Large Storage Unit Device Improved Terrain Scanner Storage Large Storage Unit Protection Light Armor Plating Weapon Assault Rifle Energy Gun EM Pulse Gun Ballistic Gun Assault Rifle Ballistic Cannon Light Cannon Launcher Mini Grenade Launcher Special Weapon Mining Laser Build | -11 -10 -10 -9 ------- Run | Yrd Mat Sub Rec Slots Evolved . | . . . . Power . | . . . . Propulsion . | . . . . Utility . | . . . . Weapon . | . . . . Parts Attached 20 | 1 11 8 . Power 1 | . . 1 . Engine 1 | . . 1 . Core . | . . . . Reactor . | . . . . Propulsion 3 | . 2 1 . Treads 3 | . 2 1 . Leg . | . . . . Wheel . | . . . . Hover . | . . . . Flight . | . . . . Utility 4 | 1 2 1 . Device 1 | 1 . . . Storage 1 | . 1 . . Processor . | . . . . Hackware . | . . . . Protection 2 | . 1 1 . Artifact . | . . . . Weapon 12 | . 7 5 . Energy Gun 4 | . 3 1 . Energy Cannon . | . . . . Ballistic Gun 4 | . 2 2 . Ballistic Cannon 1 | . 1 . . Launcher 2 | . . 2 . Special Weapon 1 | . 1 . . Impact Weapon . | . . . . Slashing Weapon . | . . . . Piercing Weapon . | . . . . Special Melee Weapon . | . . . . Unidentified Prototypes . | . . . . Parts Lost 6 | . 2 3 1 Power 1 | . . 1 . Propulsion 1 | . . 1 . Utility 2 | . . 1 1 Weapon 2 | . 2 . . Highest Loss Streak 2 | . 2 2 1 To Critical Strikes . | . . . . Average Slot Usage (%) 95 | . 99 99 85 Engine 14 | . 14 14 14 Treads 22 | . 18 27 28 Leg 5 | . 9 . . Device 2 | . 4 . . Storage 14 | . 14 14 14 Protection 7 | . 9 14 . Energy Gun 13 | . 16 2 14 Ballistic Gun 11 | . 8 21 14 Ballistic Cannon 1 | . 3 . . Peak Build Rating 9 | 9 9 9 9 Average Rating 8 | 7 8 8 8 On Entrance 8 | 6 9 8 9 Naked Turns . | . . . . Heaviest Build 34 | 14 32 34 34 Greatest Support 40 | 20 40 40 40 Greatest Overweight (x) 1 | . 1 . . Average Overweight (x) . | . . . . Largest Inventory Capacity 15 | 8 15 15 15 Average Capacity 11 | 8 9 15 15 Most Carried 12 | 6 10 12 12 Average Carried 9 | 6 8 9 12 Final Capacity 15 | 8 15 15 15 Final Carried 12 | 6 10 12 12 Class Distribution -------------------- 100% | Mutant Dominant Class ---------------- Mutant | -10/Materials Mutant | -10/Subcaves Mutant | -9/Recycling Resources | -11 -10 -10 -9 ----------- Run | Yrd Mat Sub Rec Matter Collected 658 | 210 182 75 191 Remotely . | . . . . Salvage Created 1164 | 72 662 161 269 Parts 81 | 9 46 18 8 Haulers Intercepted 2 | . 2 . . Recyclers Shooed . | . . . . Parts Field Recycled . | . . . . Retrieved Matter . | . . . . Parts Self-Destructed 13 | . . 13 . Prevented . | . . . . Kills | -11 -10 -10 -9 ------- Run | Yrd Mat Sub Rec Combat Hostiles Destroyed 26 | . 13 9 4 Guns 12 | . 5 3 4 Cannons 4 | . 4 . . AOE 9 | . 3 6 . Classes Destroyed 13 | 2 6 2 3 Worker 1 | . 1 . . Tunneler 1 | 1 . . . Hauler 2 | . 2 . . Recycler 2 | 1 1 . . Operator 1 | . 1 . . Turret 2 | . . 2 . Watcher 2 | . 2 . . Swarmer 10 | . 6 4 . Grunt 8 | . 7 . 1 Protector 1 | . . . 1 Hunter 1 | . . . 1 Programmer 1 | . . . 1 Subdweller 5 | . . 5 . Best Kill Streak 4 | 2 4 4 3 Combat Bots Only 4 | . 4 4 3 Max Kills in Single Turn 3 | 1 2 3 1 Gunslinging . | . . . . Exploded 3 | . 1 3 . Melee . | . . . . Uniques/NPCs Destroyed . | . . . . Combat | -11 -10 -10 -9 -------- Run | Yrd Mat Sub Rec Hostile Shots Fired 189 | . 68 110 11 Missed 67 | . 23 38 6 Damage Taken 1311 | . 467 757 87 Core 260 | . 94 126 40 Absorbed by Shields . | . . . . Core Remaining (%) 100 | 100 . . . Volleys Fired 85 | 2 49 27 7 Largest 2 | 2 2 2 2 Hottest 100 | 80 100 50 80 Shots Fired 149 | 4 92 39 14 Gun 123 | 4 75 30 14 Cannon 16 | . 16 . . Launcher 9 | . . 9 . Special 1 | . 1 . . Kinetic 59 | . 22 30 7 Thermal 18 | 2 9 . 7 Explosive 9 | . . 9 . Electromagnetic 63 | 2 61 . . Robot Hit Streak 13 | 3 13 8 10 Robot Miss Streak 4 | 1 4 3 1 Penetration Max . | . . . . Secondary Targets 1 | . 1 . . Max Gunslinging Chain 1 | . 1 . . Shots Hit Robots 92 | 3 50 29 10 Core Hits 55 | 3 25 21 6 Critical Kills . | . . . . Critical Parts Destroyed . | . . . . Critical Strikes 1 | 1 . . . Corrupt 1 | 1 . . . Melee Attacks . | . . . . Impact . | . . . . Slashing . | . . . . Piercing . | . . . . Sneak Attacks . | . . . . Combat Hostiles . | . . . . Follow-up Attacks . | . . . . Damage Inflicted 2031 | 41 884 906 200 Guns 1048 | 41 516 304 187 Cannons 246 | . 246 . . Explosions 724 | . 122 602 . Melee . | . . . . Ramming 13 | . . . 13 Kinetic 638 | . 272 304 62 Thermal 304 | 11 168 . 125 Explosive 602 | . . 602 . Electromagnetic 474 | 30 444 . . Impact . | . . . . Slashing . | . . . . Piercing . | . . . . Highest Corruption . | . . . . Average Corruption . | . . . . Corruption Purged . | . . . . Corruption Blocked . | . . . . Overload Shots . | . . . . Overflow Damage . | . . . . Projectiles . | . . . . Explosions . | . . . . Melee . | . . . . Knockbacks 5 | . 5 . . Impact . | . . . . Kinetic 5 | . 5 . . Secondary . | . . . . Self-Inflicted Damage 44 | . . 44 . Shots 1 | . . 1 . Rammed 2 | . . . 2 Targets Rammed 2 | . . . 2 Kicked . | . . . . Crushed . | . . . . Highest Temperature 192 | 18 192 15 103 Average Temperature 50 | 12 51 11 53 Received Heat Transfer 522 | . 180 336 6 Siege Activations . | . . . . Robots Corrupted 1 | . 1 . . Combat Hostiles 1 | . 1 . . Parts Fried 2 | . 2 . . Impact Corruptions . | . . . . Robots Melted . | . . . . Combat Hostiles . | . . . . Parts Melted . | . . . . Heat Transferred 469 | 25 300 . 144 Parts Sabotaged . | . . . . Parts Stolen . | . . . . Parts Stripped . | . . . . Power Chain Reactions 3 | . 3 . . Alert | -11 -10 -10 -9 ------- Run | Yrd Mat Sub Rec Peak Influence 351 | 10 351 . 141 Initial 86 | . 6 . 86 Average 107 | 9 131 . 65 Maximum Alert Level 1 | . 1 . . Low Security (%) 88 | 100 82 . 100 Level 1 11 | . 17 . . Level 2 . | . . . . Level 3 . | . . . . Level 4 . | . . . . Level 5 . | . . . . High Security . | . . . . Max Security . | . . . . Squads Dispatched 3 | . 3 . . Investigation 2 | . 2 . . Extermination . | . . . . Reinforcement 1 | . 1 . . Assault . | . . . . Garrison . | . . . . Intercept . | . . . . Searches Triggered . | . . . . Construction Impeded . | . . . . Haulers Reinforced . | . . . . Active Scanning Responses . | . . . . Cargo Convoy Interrupts . | . . . . Stealth | -11 -10 -10 -9 --------- Run | Yrd Mat Sub Rec Distress Signals . | . . . . Communications Jammed . | . . . . Distress Signals . | . . . . Times Spotted 38 | . 19 15 4 Peak Tracking Total 6 | . 4 6 2 Tactical Retreats 3 | . 1 2 . Traps | -11 -10 -10 -9 ------- Run | Yrd Mat Sub Rec Traps Triggered 1 | . 1 . . Indirectly . | . . . . Trap Hack Attempts . | . . . . Triggered . | . . . . Disarmed . | . . . . Reprogrammed . | . . . . Reused . | . . . . Traps Extracted . | . . . . Installed . | . . . . Triggered 1 | . 1 . . Machines | -11 -10 -10 -9 ---------- Run | Yrd Mat Sub Rec Machines Disabled 4 | . 1 3 . Max in Single Turn 3 | . 1 3 . Machines Repaired . | . . . . Machines Dismantled . | . . . . Machines Sabotaged . | . . . . Overloaded Fab Kills . | . . . . Hacking | -11 -10 -10 -9 --------- Run | Yrd Mat Sub Rec Machines Accessed 10 | . 7 . 3 Terminals 10 | . 7 . 3 Fabricators . | . . . . Repair Stations . | . . . . Recycling Units . | . . . . Scanalyzers . | . . . . Garrison Access . | . . . . Total Hacks 32 | . 28 . 4 Successful 16 | . 15 . 1 Failed 16 | . 13 . 3 Catastrophic 4 | . 4 . . Database Lockouts . | . . . . Manual 20 | . 19 . 1 Terminals 32 | . 28 . 4 Fabricators . | . . . . Repair Stations . | . . . . Recycling Units . | . . . . Scanalyzers . | . . . . Garrison Access . | . . . . Terminal Hacks 11 | . 10 . 1 Robot Analysis 2 | . 2 . . Prototype ID Bank 2 | . 2 . . Branch Access Points 1 | . 1 . . Emergency Access Points 1 | . 1 . . Locate Traps 1 | . 1 . . Zone Layout 4 | . 3 . 1 Fabricator Hacks . | . . . . Repair Station Hacks . | . . . . Recycling Unit Hacks . | . . . . Scanalyzer . | . . . . Garrison Access Hacks . | . . . . Unauthorized Hacks 5 | . 5 . . Terminals 5 | . 5 . . Botnet 4 | . 4 . . Operators 1 | . 1 . . Fabricators . | . . . . Repair Stations . | . . . . Recycling Units . | . . . . Scanalyzers . | . . . . Garrison Access . | . . . . Data Cores Recovered . | . . . . Used . | . . . . Hacking Detections 9 | . 6 . 3 Full Trace Events 1 | . 1 . . Feedback Events . | . . . . Feedback Blocked . | . . . . Robot Schematics Acquired . | . . . . Robots Built . | . . . . Authchips . | . . . . Time . | . . . . Total Robot Build Rating . | . . . . Part Schematics Acquired . | . . . . Parts Built . | . . . . Authchips . | . . . . Time . | . . . . Total Part Build Rating . | . . . . Parts Repaired . | . . . . Time . | . . . . Parts Recycled . | . . . . Recycled Matter . | . . . . Retrieved Matter . | . . . . Retrieved Components . | . . . . Parts Scanalyzed . | . . . . Part Schematics Acquired . | . . . . Parts Damaged . | . . . . Bothacking | -11 -10 -10 -9 ------------ Run | Yrd Mat Sub Rec Used RIF Installer . | . . . . Robots Hacked . | . . . . Non-combat . | . . . . Combat . | . . . . Robot Hacks Applied . | . . . . Relay Couplers Released . | . . . . Fabnet Peak Effective % . | . . . . Robots Rewired 1 | . . . 1 Allies Hacked . | . . . . Hacks Repelled . | . . . . Allies | -11 -10 -10 -9 -------- Run | Yrd Mat Sub Rec Total Allies 1 | . . . 1 Largest Group . | . . . . Highest-Rated Group . | . . . . Highest-Rated Ally . | . . . . Total Orders . | . . . . Ally Attacks . | . . . . Total Damage . | . . . . Kills . | . . . . Allies Corrupted . | . . . . Allies Melted . | . . . . Intel | -11 -10 -10 -9 ------- Run | Yrd Mat Sub Rec Robot Analysis Total 2 | . 2 . . Derelict Logs Recovered 1 | . . 1 . Drone Launches . | . . . . Drone Recoveries . | . . . . Exploration | -11 -10 -10 -9 ------------- Run | Yrd Mat Sub Rec Turns Passed 2683 | 24 1535 305 819 Spaces Moved 1531 | 14 909 141 467 Core . | . . . . Treads 1169 | . 561 141 467 Legs 362 | 14 348 . . Wheels . | . . . . Hover . | . . . . Flight . | . . . . Fastest Speed 120 | 120 120 160 160 Average Speed 150 | 120 144 160 160 Slowest Speed 190 | 120 190 160 160 Overloaded Moves . | . . . . Propulsion Burnouts . | . . . . Robots Hopped . | . . . . Cave-ins Triggered . | . . . . Exploration Rate (%) 48 | 2 99 12 80 Regions Visited 3 Branch Regions 2 Pre-discovered Areas . | . . . . Known Exits Taken . | . . . . Unknown Exits Taken 3 | 1 1 1 . Scrap Searched . | . . . . Spaces Dug 1 | . 1 . . Terrain Destroyed 66 | . 13 53 . Melee . | . . . . Projectile 1 | . 1 . . AOE 65 | . 12 53 . Terrain Rammed . | . . . . Walls Destroyed . | . . . . Machines Disabled . | . . . . Actions | -11 -10 -10 -9 --------- Run | Yrd Mat Sub Rec Total 1755 | 16 1035 180 524 Wait 56 | . 42 1 13 Move 1528 | 13 908 140 467 Hop . | . . . . Pick Up 15 | . 12 3 . Fast Attach 7 | 1 5 1 . Attach 4 | . 1 3 . Detach 2 | . 1 1 . Swap 9 | . 5 4 . Drop 12 | . 12 . . Fire 85 | 2 49 27 7 Melee . | . . . . Ram . | . . . . Kick . | . . . . Crush 2 | . . . 2 Escape Stasis . | . . . . Rewire 35 | . . . 35 Trap . | . . . . Miscellaneous . | . . . . Route ------- -11/Scrapyard -10/Materials (discovered 6 exits: [*Mat x3] / *Min x2 / [*Sub]) -10/Subcaves (discovered 2 exits: Mat / *Rec) -9/Recycling (discovered 1 exit: [*Fac]) History --------- Turn | Location | Event 8 | -11/Scrapyard | Discovered new exit (range 2) 25 | -11/Scrapyard | Entered Materials 110 | -10/Materials | Discovered new exit (range 10) 257 | -10/Materials | Discovered new exit (range 9) 322 | -10/Materials | Build established: Mutant 424 | -10/Materials | Discovered new exit (range 7) 765 | -10/Materials | Discovered new exit (range 11) 1136 | -10/Materials | Discovered new exit (range 9) 1395 | -10/Materials | Identified exit to Mines 1551 | -10/Materials | Discovered new exit (range 5) 1560 | -10/Materials | Entered Subcaves 1601 | -10/Subcaves | Core integrity fell below 50% 1636 | -10/Subcaves | Discovered new exit (range 13) 1740 | -10/Subcaves | Identified exit to Materials 1783 | -10/Subcaves | Ambushed by Subdweller buried in earth 1783 | -10/Subcaves | Ambushed by Subdweller buried in earth 1787 | -10/Subcaves | Core integrity fell below 20% 1865 | -10/Subcaves | Entered Recycling 1866 | -9/Recycling | Met a Zionite searching for Scraptown 2195 | -9/Recycling | Discovered new exit (range 13) 2684 | -9/Recycling | Destroyed by D-53 Grenadier with Mini Grenade Launcher Last Messages --------------- 01919_ Acquired 3 matter. 01921_ H-55 Commando destroyed. 01922_ Acquired 3 matter. 01923_ R-06 Scavenger collects Lgt. Ion Engine. 01925_ U-05 Engineer builds a Door. 01980_ Connecting with Terminal... 01980_ Current location identified: Recycling >>Layout(Zone) Retrieving Zone 9A layout... Downloaded map data. 02017_ Connecting with Terminal... 02195_ EXIT=FOUND 02244_ Connecting with Terminal... [Achievement: Novice Programmer] 02528_ Slammed into R-06 Scavenger. 02622_ I-25 Savior destroyed. 02625_ Acquired 3 matter. 02647_ Attempting to rewire Y-45 Defender. 02681_ Y-45 Defender rewired. 02684_ Defender 2a destroyed. Map ----- +----------------------------------------------------+ | ??????### #???????????###### | | ????????# ############# | | ????????# %% + """ | | ????????# ################## """ | | ????????# ### #????????????????# """ | | ????????# #?# #????????????????# | | ??#######+### #????????????????# """ | | ??# # #????????????????# """ | | ??# # ####????????????????# """ | | ??# # #???????????????????# | | ??# # #???????????????????###### | | ??# """ """ # #????????????????????????? | | ??# """ """ # #############+##?????????? | | ??# """ """ # % ????????? | | ??# + = ????????? | | ??# """ """ # ????????? | | ??# """ """ ### #############??????????? | | ??# """ """ #?# #??????????????????????? | | ??# #?# #??????????????????????? | | ??# """ """ #?# #??????????????????????? | | ??# """ """ #?# #??????????????????????? | | ??# """ """ #?# #??????????????????????? | | ??# #?# #??????????????????????? | | ??###########?# #??????????????????????? | | ??????????## ##u#??????????????????????? | | ???######## @#??????????????????????? | | ???#] u[Y[ % #??????????????????????? | | ???# rt rga]%#??????????????????????? | | ???# r % ! Ytkgg#??????????????????????? | | ???#k d= % #??????????????????????? | | ???# %%% #??????????????????????? | | ???#+#######+##+#########+###########??? | | ?### #??? | | ?# % ### ### #### | | ?# % #?###?# | | ?# #####+############+######## | | ?### #?#! #?# # | | ???# #?# ! ! #?# + | | ???# #?# #?# """ """ # ### | | ???# #?# !!! !#?# """"""""" #####?# | | ???# #?# ! ! #?# """"" #?????# | | ???# #?# ! #?# #?????# | | ???#####?# #?# """ """ #?????# | | ?????????# ! #?# """"""""" #?????# | | ?????????# ! !!#?# """"" #?????# | | ?????????##########?# #?????# | | ????????????????????# "T" #?????# | | ????????????????????# #?????# | | ????????????????????##############?????# | | ???????????????????????????????????????? | +----------------------------------------------------+ Best States ------------- Heat Dissipation 25 Energy Generation 10 Energy Capacity 250 Matter Stores 300 Matter Capacity 300 Sight Range 16 Terrain Scan Range 16 Terrain Scan Density 10 Armor Coverage 150 Evasion (%) 55 Recoil Reduction 2 Item Schematics ----------------- None Robot Schematics ------------------ None Fabricated ------------ Nothing Alien Tech Used ----------------- None Achievements -------------- Novice Programmer Challenges ------------ None Game ------ Seed CompactDerelictWand Manual? 0 Play Time 00:26:26 Cumulative 82.1 hours Start 2024.08.07 @ 16:32:00 End 2024.08.07 @ 16:57:28 Sessions 1 Manual Loads 0 Difficulty Rogue Special Mode None Game No. 55 Rogue 52 Adventurer 0 Explorer 3 Win Type - Total 1 Types 1/0/0/0/0/0/0/0/0 Lore% 26 Gallery% 35 Achievement% 40 Wizard Run 0 Options --------- Layout 1 ASCII 0 Keyboard 1 Movement Numpad Keybinds 1 Fullscreen 1 Font 24/Smallcaps Map View 50x35 Zoom Use 0% Tactical HUD 1 Map Filters NONE Filters NONE Steam 1 RUN: 244b4720-dcf7-465d-b776-e2d423fbb8a6